bitfinex/quotes_SOLUSD_20250414
["timestamp","ask_amount","ask_price","bid_price","bid_amount"]
[1744635214097,108.17964886,133.87,133.86,0.14216157]
[1744635215100,89.53,133.87,133.86,0.14216157]
[1744635216015,89.53,133.87,133.86,7.61256157]
[1744635216194,6.63,133.87,133.86,19.07107408]
[1744635216601,0.03,133.87,133.86,19.07107408]
[1744635217019,0.03,133.87,133.86,30.52958659]
[1744635217527,0.03,133.87,133.86,30.9560713]
[1744635217731,0.03,133.87,133.86,19.49755879]
[1744635219619,0.03,133.87,133.86,19.07107408]
[1744635219800,0.03,133.87,133.83,11.45851251]
[1744635220005,11.48851251,133.87,133.84,0.14216157]
[1744635220313,0.03,133.87,133.86,0.14216157]
[1744635221418,0.03,133.87,133.86,7.61256157]
[1744635221721,0.03,133.87,133.86,0.14216157]
[1744635225125,0.03,133.87,133.86,7.61256157]
[1744635225927,0.03,133.87,133.86,0.14216157]
[1744635226225,11.45851251,133.89,133.86,0.14216157]
[1744635229119,11.45851251,133.89,133.86,7.61256157]
[1744635229431,7.3295798,133.89,133.86,0.14216157]
[1744635229726,14.7983798,133.89,133.86,0.14216157]
[1744635230225,6.56,133.88,133.86,0.14216157]
[1744635230926,6.56,133.88,133.86,7.61256157]
[1744635231308,6.56,133.88,133.86,0.14216157]
[1744635232524,6.56,133.88,133.84,7.3295798]
[1744635232721,21.3590798,133.88,133.85,0.14216157]
[1744635233323,7.3295798,133.86,133.81,7.4732]
[1744635233522,7.3295798,133.86,133.82,0.14216157]
[1744635233900,18.64964886,133.87,133.82,7.47174137]
[1744635234106,27.5335798,133.88,133.84,0.14216157]
[1744635235127,6.56,133.88,133.84,0.14216157]
[1744635235441,0.03,133.91,133.88,0.14216157]
[1744635235612,0.03,133.91,133.89,7.3295798]
[1744635235813,0.03,133.91,133.88,7.47174137]
[1744635236733,0.03,133.91,133.87,7.3295798]
[1744635236940,0.03,133.91,133.88,0.14216157]
[1744635237234,0.03,133.91,133.88,7.61116157]
[1744635237617,0.03,133.91,133.88,0.14216157]
[1744635238537,0.03,133.91,133.88,7.61146157]
[1744635239613,0.03,133.91,133.9,11.58938915]
[1744635240220,0.03,133.91,133.9,0.14216157]
[1744635240618,0.03,133.91,133.9,7.61036157]
[1744635245215,0.03,133.91,133.9,0.14216157]
[1744635246019,0.03,133.91,133.89,7.4685]
[1744635246020,18.64964886,133.89,133.83,0.14216157]
[1744635246224,11.44722758,133.87,133.83,0.14216157]
[1744635246539,6.56,133.87,133.83,19.06098915]
[1744635246742,6.56,133.87,133.85,0.14216157]
[1744635246942,6.56,133.87,133.86,0.14216157]
[1744635247649,6.56,133.87,133.85,0.14216157]
[1744635248641,6.56,133.87,133.84,0.063]
[1744635248839,6.56,133.87,133.84,0.20516157]
[1744635249146,6.56,133.87,133.84,7.67666157]
[1744635249450,25.47712758,133.87,133.84,0.063]
[1744635249628,11.44722758,133.86,133.84,0.063]
[1744635249828,11.44722758,133.85,133.84,0.063]
[1744635250540,18.91782758,133.86,133.84,0.063]
[1744635250721,6.56,133.87,133.85,11.58938915]
[1744635250923,6.56,133.87,133.86,11.58938915]
[1744635251819,6.56,133.87,133.86,0.14216157]
[1744635252242,100.90722758,133.9,133.85,11.44722758]
[1744635252438,100.90722758,133.9,133.86,0.14216157]
[1744635252941,100.90722758,133.9,133.86,7.61216157]
[1744635254430,6.56,133.9,133.86,19.05938915]
[1744635254632,6.56,133.9,133.89,0.14216157]
[1744635255241,6.56,133.9,133.89,7.61096157]
[1744635256969,6.56,133.9,133.89,19.05818915]
[1744635257565,0.03,133.91,133.89,19.05818915]
[1744635257861,0.03,133.91,133.9,11.58938915]
[1744635258440,0.03,133.91,133.9,0.14216157]
[1744635258960,0.03,133.91,133.9,7.61036157]
[1744635265872,0.03,133.91,133.9,19.05758915]
[1744635267259,0.03,133.91,133.9,14.93399312]
[1744635270869,0.03,133.91,133.9,0.14216157]
[1744635271170,0.03,133.91,133.9,7.61036157]
[1744635272166,0.03,133.91,133.9,0.14216157]
[1744635272870,18.64964886,133.9,133.84,0.063]
[1744635273067,7.32363155,133.86,133.84,7.67666157]
[1744635273374,7.32363155,133.87,133.84,7.67666157]
[1744635273856,6.56,133.89,133.87,0.14216157]
[1744635275671,6.56,133.89,133.85,7.32363155]
[1744635275867,7.32363155,133.87,133.85,0.14216157]
[1744635276767,7.32363155,133.87,133.84,0.20516157]
[1744635277852,7.32363155,133.87,133.84,7.67666157]
[1744635278678,13.88363155,133.89,133.84,15.00029312]
[1744635278970,7.32363155,133.88,133.84,7.67666157]
[1744635279952,7.32363155,133.87,133.84,0.063]
[1744635280275,7.32363155,133.85,133.84,0.063]
[1744635280577,7.32363155,133.86,133.84,0.063]
[1744635280959,26.38614886,133.87,133.84,0.063]
[1744635281262,7.32363155,133.85,133.84,0.063]
[1744635281465,25.97328041,133.85,133.84,0.063]
[1744635281882,109.29976512,133.85,133.84,0.063]
[1744635282083,139.19076512,133.85,133.84,0.063]
[1744635282679,116.77076512,133.85,133.84,0.063]
[1744635283155,120.91204797,133.85,133.84,0.063]
[1744635284174,60.43204797,133.85,133.84,0.0001]
[1744635284357,47.356772,133.84,133.83,0.063]
[1744635284681,65.3816864,133.84,133.83,0.063]
[1744635285463,69.04381398,133.84,133.83,0.063]
[1744635286177,26.12404886,133.79,133.78,0.063]
[1744635286371,44.14896326,133.79,133.78,0.063]
[1744635286576,44.57544797,133.79,133.78,0.063]
[1744635286773,50.80464797,133.79,133.78,0.063]
[1744635287686,50.6624864,133.79,133.78,0.063]
[1744635287990,50.37816326,133.79,133.78,0.063]
[1744635288889,50.52032483,133.79,133.78,0.063]
[1744635289272,50.80464797,133.79,133.78,0.063]
[1744635291384,50.6624864,133.79,133.78,0.063]
[1744635291682,50.52032483,133.79,133.78,0.063]
[1744635291886,50.6624864,133.79,133.78,0.063]
[1744635294587,36.67456326,133.79,133.78,0.063]
[1744635294766,44.14896326,133.79,133.78,0.063]
[1744635294967,44.4332864,133.79,133.78,0.063]
[1744635295382,44.57544797,133.79,133.78,0.063]
[1744635296089,51.520072,133.76,133.75,0.063]
[1744635296278,62.9849864,133.76,133.75,0.063]
[1744635296592,70.4609864,133.76,133.75,0.063]
[1744635298292,44.64964886,133.76,133.75,0.063]
[1744635298490,56.11456326,133.76,133.75,0.063]
[1744635299689,63.59056326,133.76,133.75,0.063]
[1744635300196,44.64964886,133.76,133.75,0.063]
[1744635300499,82.9,133.77,133.75,0.20516157]
[1744635300688,25.20964886,133.79,133.75,11.67007597]
[1744635301003,6.56,133.79,133.78,11.60707597]
[1744635301681,6.56,133.79,133.78,19.08197597]
[1744635302391,6.56,133.83,133.79,0.14216157]
[1744635302600,6.56,133.83,133.82,0.14216157]
[1744635303400,6.56,133.83,133.8,11.4649144]
[1744635303894,6.56,133.83,133.81,0.14216157]
[1744635305094,18.9365144,133.84,133.81,0.14216157]
[1744635305397,6.56,133.83,133.81,0.14216157]
[1744635306384,14.0321,133.83,133.8,0.14216157]
[1744635306586,18.0249144,133.83,133.8,0.14216157]
[1744635307401,11.4649144,133.82,133.79,0.14216157]
[1744635307978,36.67456326,133.83,133.79,11.60707597]
[1744635308179,25.20964886,133.83,133.79,11.60707597]
[1744635309021,25.20964886,133.83,133.79,19.08107597]
[1744635309508,6.56,133.83,133.79,19.08107597]
[1744635309709,6.56,133.83,133.81,11.60707597]
[1744635309915,6.56,133.83,133.82,11.60707597]
[1744635310283,6.56,133.83,133.82,0.14216157]
[1744635310784,6.56,133.83,133.82,11.60707597]
[1744635310982,6.56,133.83,133.82,19.07977597]
[1744635313527,6.56,133.83,133.79,18.686]
[1744635313528,18.64964886,133.82,133.76,1.6335]
[1744635313813,18.64964886,133.82,133.75,7.5393]
[1744635313814,11.4649144,133.78,133.75,7.5393]
[1744635313984,11.4649144,133.77,133.75,0.063]
[1744635314194,11.4649144,133.77,133.75,0.20516157]
[1744635314815,11.4649144,133.77,133.75,7.5396]
[1744635315006,6.56,133.77,133.76,0.14216157]
[1744635315811,18.0249144,133.77,133.75,0.063]
[1744635316013,11.4649144,133.76,133.75,0.063]
[1744635316321,6.56,133.77,133.75,0.063]
[1744635316503,11.4649144,133.76,133.75,0.063]
[1744635317931,37.59056326,133.76,133.75,0.063]
[1744635318109,30.11456326,133.76,133.75,0.063]
[1744635318420,45.97454797,133.76,133.75,0.063]
[1744635318719,45.8323864,133.76,133.75,0.063]
[1744635319295,45.97454797,133.76,133.75,0.063]
[1744635320220,49.73258327,133.76,133.75,0.063]
[1744635320428,49.73258327,133.76,133.75,0.0001]
[1744635320429,61.19749767,133.76,133.75,0.0001]
[1744635321034,34.08314886,133.76,133.75,0.0001]
[1744635321326,36.67456326,133.76,133.75,0.0001]
[1744635322423,44.15056326,133.76,133.75,0.0001]
[1744635324400,44.57704797,133.76,133.75,0.0001]
[1744635326622,44.64964886,133.74,133.73,0.063]
[1744635326813,67.8638008,133.74,133.73,0.063]
[1744635327303,68.00596237,133.74,133.73,0.063]
[1744635327711,75.48306237,133.74,133.73,0.063]
[1744635328006,19.07613357,133.73,133.72,0.063]
[1744635328229,30.54104797,133.73,133.72,0.063]
[1744635329232,53.96104797,133.73,133.71,0.063]
[1744635329537,30.3988864,133.72,133.71,0.063]
[1744635330037,37.8771864,133.72,133.71,0.063]
[1744635330413,38.01934797,133.72,133.71,0.063]
[1744635330739,37.8771864,133.72,133.71,0.063]
[1744635331235,120.7771864,133.72,133.71,0.063]
[1744635332009,120.49286326,133.72,133.71,0.063]
[1744635332206,113.01456326,133.72,133.71,0.063]
[1744635332436,26.12694886,133.74,133.71,0.063]
[1744635332640,30.11456326,133.73,133.71,0.063]
[1744635332810,11.4649144,133.72,133.71,0.063]
[1744635333325,26.12694886,133.74,133.71,0.063]
[1744635333628,11.4649144,133.73,133.71,0.063]
[1744635333815,30.11456326,133.73,133.71,0.063]
[1744635334220,37.59236326,133.73,133.71,0.063]
[1744635334424,11.4649144,133.72,133.71,0.063]
[1744635334609,30.11456326,133.72,133.71,0.063]
[1744635335946,37.59286326,133.72,133.71,0.063]
[1744635336423,26.12794886,133.72,133.71,0.063]
[1744635336737,37.59286326,133.72,133.71,0.063]
[1744635337841,37.8771864,133.72,133.71,0.063]
[1744635339641,38.01934797,133.72,133.71,0.063]
[1744635339843,46.13214797,133.72,133.71,0.063]
[1744635340151,101.97613357,133.71,133.7,0.063]
[1744635340336,37.12104797,133.71,133.7,0.063]
[1744635342529,44.59984797,133.71,133.7,0.063]
[1744635345270,44.31552483,133.71,133.7,0.063]
[1744635345565,44.59984797,133.71,133.7,0.063]
[1744635345735,0.28432314,133.7,133.69,0.03]
[1744635345934,41.8638008,133.7,133.69,0.03]
[1744635346362,44.933972,133.68,133.67,0.063]
[1744635346570,90.42596237,133.68,133.67,0.063]
[1744635346864,18.933972,133.67,133.66,0.03]
[1744635347049,19.07613357,133.65,133.57,0.14216157]
[1744635347237,18.64964886,133.61,133.57,0.14216157]
[1744635347437,11.4649144,133.58,133.55,1.5199]
[1744635347649,30.11456326,133.59,133.55,20.4725144]
[1744635347857,30.11456326,133.59,133.56,0.14216157]
[1744635348072,18.64964886,133.58,133.56,0.14216157]
[1744635348246,30.11456326,133.58,133.55,1.5199]
[1744635348943,18.9505144,133.59,133.55,1.5199]
[1744635349145,11.4649144,133.58,133.55,1.5199]
[1744635349558,26.13524886,133.59,133.56,0.14216157]
[1744635349559,30.11456326,133.59,133.56,0.14216157]
[1744635349748,96.9652,133.6,133.56,19.09387597]
[1744635349749,89.48,133.6,133.56,19.09387597]
[1744635349949,89.48,133.6,133.57,11.4649144]
[1744635351364,89.48,133.6,133.59,0.14216157]
[1744635351668,6.58,133.6,133.59,0.14216157]
[1744635352437,25.22964886,133.6,133.57,7.4864]
[1744635352639,25.22964886,133.6,133.56,7.487]
[1744635352855,36.69456326,133.6,133.57,0.14216157]
[1744635354162,44.17956326,133.6,133.57,0.14216157]
[1744635354360,44.17956326,133.6,133.56,0.14216157]
[1744635354361,11.4649144,133.58,133.56,0.14216157]
[1744635354863,18.64964886,133.57,133.54,0.14216157]
[1744635355238,25.22964886,133.6,133.56,11.60707597]
[1744635355438,6.58,133.6,133.57,11.4649144]
[1744635355744,6.58,133.6,133.58,0.14216157]
[1744635356652,25.5299144,133.6,133.58,0.14216157]
[1744635357246,18.64964886,133.59,133.55,18.9523144]
[1744635357563,30.11456326,133.59,133.52,1.5973]
[1744635357869,18.64964886,133.59,133.57,0.14216157]
[1744635358347,18.64964886,133.59,133.56,0.14216157]
[1744635358553,11.4649144,133.57,133.53,0.14216157]
[1744635358756,26.13534886,133.59,133.55,0.14216157]
[1744635359061,18.64964886,133.59,133.55,11.60707597]
[1744635359264,30.11456326,133.59,133.55,0.14216157]
[1744635359746,37.60016326,133.59,133.55,0.14216157]
[1744635360064,18.64964886,133.59,133.57,0.14216157]
[1744635360260,26.13534886,133.59,133.56,0.14216157]
[1744635360452,37.60026326,133.59,133.56,0.14216157]
[1744635360971,18.64964886,133.57,133.53,11.4649144]
[1744635361261,18.64964886,133.55,133.52,0.14216157]
[1744635361453,6.58,133.54,133.52,0.14216157]
[1744635361962,6.58,133.54,133.52,19.09647597]
[1744635362161,6.58,133.54,133.53,11.4649144]
[1744635362456,233.42,133.6,133.54,0.14216157]
[1744635362662,18.0449144,133.59,133.56,0.14216157]
[1744635363369,11.4649144,133.58,133.55,0.14216157]
[1744635363566,18.64964886,133.57,133.54,18.9529144]
[1744635363770,18.64964886,133.57,133.55,0.14216157]
[1744635364266,18.64964886,133.55,133.51,0.03]
[1744635364472,6.58,133.54,133.51,0.03]
[1744635364667,6.58,133.54,133.51,11.4949144]
[1744635365283,6.58,133.54,133.53,0.14216157]
[1744635366347,6.58,133.54,133.52,11.4649144]
[1744635366548,25.22964886,133.54,133.52,0.14216157]
[1744635367051,25.22964886,133.54,133.51,7.5197]
[1744635367966,25.22964886,133.54,133.51,0.17216157]
[1744635368462,18.64964886,133.53,133.51,0.03]
[1744635368667,18.0449144,133.54,133.51,0.17216157]
[1744635368861,25.22964886,133.54,133.51,11.63707597]
[1744635369383,25.22964886,133.54,133.51,19.12677597]
[1744635370169,18.64964886,133.53,133.51,11.63707597]
[1744635370371,18.64964886,133.53,133.51,0.17216157]
[1744635371178,44.18296326,133.54,133.51,0.03]
[1744635371358,6.58,133.54,133.51,0.03]
[1744635371560,6.58,133.54,133.52,0.14216157]
[1744635371758,25.22964886,133.54,133.52,0.14216157]
[1744635371961,25.22964886,133.54,133.51,11.4949144]
[1744635372156,6.58,133.54,133.52,11.60707597]
[1744635372783,6.58,133.54,133.52,0.14216157]
[1744635373282,18.64964886,133.53,133.51,0.17216157]
[1744635374451,6.58,133.54,133.51,11.63707597]
[1744635374656,6.58,133.54,133.53,0.14216157]
[1744635374852,6.58,133.54,133.52,11.4649144]
[1744635375170,6.58,133.54,133.53,0.14216157]
[1744635375679,6.62,133.55,133.53,11.60707597]
[1744635375997,6.62,133.55,133.54,11.4649144]
[1744635376282,6.62,133.55,133.53,0.14216157]
[1744635376487,6.62,133.55,133.53,11.60707597]
[1744635376997,6.62,133.55,133.54,18.9532144]
[1744635377987,6.62,133.55,133.54,7.4883]
[1744635379859,6.62,133.55,133.54,18.9532144]
[1744635380478,6.62,133.55,133.54,19.09537597]
[1744635381180,6.62,133.55,133.54,11.60707597]
[1744635381392,6.62,133.55,133.54,0.14216157]
[1744635381774,6.62,133.55,133.54,19.09537597]
[1744635382174,6.62,133.57,133.54,19.09537597]
[1744635382472,6.62,133.57,133.55,11.4649144]
[1744635382691,6.62,133.57,133.56,0.14216157]
[1744635383883,233.42,133.6,133.56,11.60707597]
[1744635384086,233.42,133.6,133.59,11.4649144]
[1744635384389,240.04,133.6,133.59,11.4649144]
[1744635385596,240.04,133.6,133.58,19.09317597]
[1744635386470,240.04,133.6,133.59,11.4649144]
[1744635386671,240.04,133.6,133.58,0.14216157]
[1744635388372,240.04,133.6,133.59,11.60707597]
[1744635389381,240.04,133.6,133.59,19.09257597]
[1744635389585,6.62,133.6,133.59,19.09257597]
[1744635390168,6.62,133.6,133.59,20.71427597]
[1744635390376,6.62,133.64,133.59,39.42817597]
[1744635390590,6.62,133.64,133.63,11.60707597]
[1744635391178,6.62,133.64,133.63,19.09037597]
[1744635392297,6.62,133.64,133.63,11.60707597]
[1744635392996,6.62,133.64,133.63,0.14216157]
[1744635393784,6.62,133.64,133.63,11.60707597]
[1744635400203,6.62,133.64,133.63,19.09037597]
[1744635400694,6.62,133.64,133.63,11.60707597]
[1744635401700,6.62,133.64,133.63,19.09037597]
[1744635402087,6.62,133.64,133.63,11.60707597]
[1744635402603,14.1027,133.64,133.63,0.14216157]
[1744635402794,32.75234886,133.64,133.59,1.6217]
[1744635402975,32.75234886,133.64,133.6,11.60707597]
[1744635403402,32.75234886,133.64,133.62,0.14216157]
[1744635407808,44.21726326,133.64,133.62,0.14216157]
[1744635407982,18.64964886,133.63,133.59,11.4649144]
[1744635408190,30.11456326,133.63,133.59,0.14216157]
[1744635409103,18.9488144,133.62,133.57,0.14216157]
[1744635409311,11.4649144,133.61,133.57,11.60707597]
[1744635410207,7.4839,133.62,133.59,0.14216157]
[1744635410398,7.4834,133.63,133.61,0.14216157]
[1744635411309,7.4834,133.63,133.6,11.4649144]
[1744635411484,18.9483144,133.63,133.59,0.14216157]
[1744635411803,37.59796326,133.63,133.59,11.60707597]
[1744635412491,30.11456326,133.62,133.59,0.14216157]
[1744635414113,11.4649144,133.61,133.56,11.60707597]
[1744635414315,11.4649144,133.61,133.56,19.09427597]
[1744635414613,7.485,133.6,133.56,11.60707597]
[1744635414808,6.62,133.59,133.56,11.60707597]
[1744635415123,6.62,133.59,133.57,11.4649144]
[1744635416191,6.62,133.59,133.58,11.60707597]
[1744635417294,6.62,133.59,133.58,19.09317597]
[1744635419118,6.62,133.59,133.58,11.60707597]
[1744635420517,6.62,133.59,133.58,19.09317597]
[1744635420696,6.62,133.59,133.58,11.60707597]
[1744635421914,6.62,133.59,133.58,19.09317597]
[1744635422117,6.62,133.63,133.59,0.14216157]
[1744635422295,6.62,133.63,133.58,37.6663144]
[1744635422296,6.62,133.63,133.62,11.60707597]
[1744635422997,6.1024,133.67,133.62,11.60707597]
[1744635423314,6.62,133.65,133.64,0.14216157]
[1744635423816,14.1022,133.65,133.62,11.4649144]
[1744635424116,6.62,133.65,133.63,0.14216157]
[1744635425219,6.62,133.65,133.63,11.60707597]
[1744635426227,14.1022,133.65,133.63,0.14216157]
[1744635426403,9.0314,133.71,133.65,0.14216157]
[1744635426719,13.1647,133.7,133.68,11.4649144]
[1744635428417,6.683,133.7,133.69,0.14216157]
[1744635429316,6.683,133.7,133.68,0.14216157]
[1744635430218,6.683,133.7,133.68,11.60707597]
[1744635430404,6.683,133.7,133.69,11.60707597]
[1744635430607,6.683,133.7,133.69,0.14216157]
[1744635431222,6.683,133.7,133.68,0.14216157]
[1744635432631,18.64964886,133.69,133.63,26.1914]
[1744635432932,11.4649144,133.64,133.59,11.60707597]
[1744635433231,11.4649144,133.62,133.59,7.62766157]
[1744635433534,18.1449144,133.63,133.59,7.62766157]
[1744635433830,6.68,133.63,133.59,19.09257597]
[1744635434010,6.68,133.63,133.62,0.14216157]
[1744635434523,6.68,133.63,133.62,11.60707597]
[1744635435300,6.68,133.63,133.62,19.09097597]
[1744635436529,6.68,133.67,133.63,0.14216157]
[1744635436834,6.68,133.67,133.65,0.14216157]
[1744635437131,6.68,133.67,133.65,11.60707597]
[1744635437333,6.68,133.67,133.66,0.14216157]
[1744635438238,6.68,133.67,133.66,19.08867597]
[1744635439539,6.68,133.67,133.66,0.14216157]
[1744635440238,6.68,133.67,133.66,19.08867597]
[1744635440628,6.68,133.67,133.66,11.60707597]
[1744635440935,6.68,133.67,133.66,0.14216157]
[1744635441140,6.68,133.67,133.64,11.4649144]
[1744635441308,6.68,133.67,133.65,0.14216157]
[1744635441743,25.6260144,133.67,133.62,7.4835]
[1744635442047,6.68,133.67,133.63,11.60707597]
[1744635442223,14.1611,133.67,133.63,0.14216157]
[1744635442434,25.6260144,133.67,133.63,11.60707597]
[1744635442725,6.68,133.67,133.64,11.4649144]
[1744635442931,6.68,133.67,133.63,11.60707597]
[1744635443743,6.68,133.67,133.63,19.09037597]
[1744635443744,14.1611,133.67,133.63,19.09037597]
[1744635444239,25.6260144,133.67,133.63,0.14216157]
[1744635446231,14.1611,133.67,133.63,19.09037597]
[1744635446532,14.1611,133.67,133.63,0.14216157]
[1744635446533,25.6260144,133.67,133.63,0.14216157]
[1744635447436,18.64964886,133.66,133.63,0.14216157]
[1744635447739,18.64964886,133.64,133.58,0.14216157]
[1744635447942,30.11456326,133.64,133.61,0.14216157]
[1744635448124,18.64964886,133.64,133.61,0.14216157]
[1744635448639,18.64964886,133.64,133.61,7.62646157]
[1744635449147,11.4649144,133.65,133.61,19.09137597]
[1744635449322,18.64964886,133.65,133.61,19.09137597]
[1744635450243,6.68,133.67,133.63,11.4649144]
[1744635450449,6.68,133.67,133.65,11.4649144]
[1744635451018,6.68,133.67,133.65,0.14216157]
[1744635452324,6.68,133.67,133.65,11.60707597]
[1744635452537,6.68,133.67,133.66,11.4649144]
[1744635454350,6.68,133.67,133.66,18.9465144]
[1744635455453,6.68,133.67,133.66,19.08867597]
[1744635455658,6.68,133.67,133.66,11.60707597]
[1744635455822,6.68,133.67,133.66,19.08867597]
[1744635458223,6.68,133.67,133.66,7.62376157]
[1744635458634,6.68,133.67,133.66,19.08867597]
[1744635459448,6.68,133.67,133.66,11.60707597]
[1744635459654,6.68,133.67,133.66,0.14216157]
[1744635460748,6.68,133.67,133.66,19.08867597]
[1744635462457,0.063,133.7,133.67,0.14216157]
[1744635462752,0.063,133.7,133.69,11.60707597]
[1744635463526,0.063,133.7,133.67,82.6]
[1744635463855,0.063,133.7,133.68,0.14216157]
[1744635465649,0.063,133.7,133.68,19.08747597]
[1744635465856,0.063,133.7,133.68,0.14216157]
[1744635467341,0.063,133.7,133.68,7.62246157]
[1744635470759,0.063,133.7,133.64,7.62486157]
[1744635470964,0.063,133.7,133.67,0.14216157]
[1744635474462,6.74,133.69,133.67,7.62326157]
[1744635474664,6.74,133.69,133.67,19.08817597]
[1744635475756,6.74,133.69,133.67,11.60707597]
[1744635478062,6.74,133.69,133.67,19.08807597]
[1744635478265,6.74,133.69,133.68,11.4649144]
[1744635478464,0.063,133.7,133.69,0.14216157]
[1744635478679,0.063,133.7,133.69,11.60707597]
[1744635479863,0.063,133.7,133.69,19.08697597]
[1744635487773,0.063,133.72,133.71,26.56864628]
[1744635487980,0.063,133.72,133.71,109.16864628]
[1744635488157,0.063,133.72,133.71,128.11236068]
[1744635488878,0.0001,133.72,133.71,128.11236068]
[1744635489073,6.74,133.75,133.73,0.42648471]
[1744635489274,0.063,133.76,133.74,23.07199037]
[1744635489455,0.063,133.76,133.75,11.60707597]
[1744635490078,0.063,133.76,133.75,19.08367597]
[1744635491452,0.063,133.76,133.75,11.60707597]
[1744635491655,0.063,133.76,133.75,19.08367597]
[1744635492263,0.063,133.76,133.75,11.60707597]
[1744635494487,0.063,133.76,133.75,0.14216157]
[1744635495178,0.063,133.76,133.72,0.14216157]
[1744635495179,17.6221144,133.76,133.72,0.14216157]
[1744635495484,11.4649144,133.75,133.72,0.14216157]
[1744635495675,6.72,133.74,133.72,0.14216157]
[1744635497665,6.72,133.74,133.73,11.60707597]
[1744635498581,0.063,133.76,133.74,0.14216157]
[1744635499693,0.063,133.76,133.74,11.60707597]
[1744635500078,0.063,133.76,133.74,19.08417597]
[1744635500281,0.063,133.76,133.75,11.60707597]
[1744635500981,0.063,133.76,133.75,19.08367597]
[1744635510397,0.063,133.76,133.75,101.68367597]
[1744635511181,0.063,133.76,133.75,97.55675153]
[1744635516678,0.063,133.76,133.75,97.98323624]
[1744635518585,0.063,133.78,133.77,33.90663624]
[1744635518785,0.063,133.78,133.77,116.50663624]
[1744635518980,0.063,133.78,133.77,0.14216157]
[1744635525501,0.063,133.78,133.77,14.95565153]
[1744635528812,0.063,133.78,133.77,7.48015153]
[1744635528986,0.063,133.78,133.77,0.14216157]
[1744635541594,0.063,133.78,133.77,14.95565153]
[1744635542904,0.063,133.78,133.77,97.55565153]
[1744635543211,0.063,133.78,133.77,97.98213624]
[1744635546421,0.063,133.79,133.78,7.61706157]
[1744635546611,0.063,133.79,133.78,14.95505153]
[1744635546794,0.063,133.79,133.78,44.30701137]
[1744635547118,0.063,133.79,133.78,126.90701137]
[1744635547308,0.063,133.8,133.78,127.33349608]
[1744635547510,0.063,133.8,133.79,36.83211137]
[1744635547714,0.063,133.8,133.79,7.48015153]
[1744635547908,0.063,133.8,133.79,36.83211137]
[1744635548512,0.063,133.8,133.79,44.30651137]
[1744635548720,0.0001,133.8,133.79,44.73299608]
[1744635551206,0.063,133.81,133.8,0.56864628]
[1744635551420,0.063,133.81,133.8,119.85859608]
[1744635552329,0.0001,133.81,133.8,119.85859608]
[1744635552806,0.0001,133.81,133.8,127.33239608]
[1744635553831,0.0001,133.81,133.8,145.98204494]
[1744635554204,0.063,133.84,133.82,0.14216157]
[1744635554403,0.063,133.84,133.83,7.48015153]
[1744635555044,0.063,133.84,133.83,15.23657467]
[1744635555218,0.063,133.84,133.83,15.37873624]
[1744635555917,0.063,133.84,133.83,97.97873624]
[1744635557146,0.0001,133.84,133.83,97.97873624]
[1744635561428,0.0001,133.84,133.83,99.51143624]
[1744635563837,0.03,133.89,133.86,0.14216157]
[1744635564012,0.03,133.89,133.88,7.48015153]
[1744635565613,0.03,133.89,133.88,15.37593624]
[1744635566939,0.03,133.89,133.88,14.94945153]
[1744635567123,0.03,133.89,133.88,0.14216157]
[1744635568652,0.03,133.89,133.88,7.61146157]
[1744635568821,0.03,133.89,133.88,0.14216157]
[1744635570118,6.5148,133.88,133.84,0.14216157]
[1744635570321,7.33798996,133.85,133.84,0.14216157]
[1744635570845,7.4708,133.86,133.82,0.14216157]
[1744635571046,14.80878996,133.86,133.82,0.14216157]
[1744635571447,7.33798996,133.85,133.82,0.14216157]
[1744635572174,7.33798996,133.84,133.81,0.14216157]
[1744635572322,7.33798996,133.83,133.81,0.14216157]
[1744635572638,14.81018996,133.83,133.81,0.14216157]
[1744635573946,13.0175,133.82,133.8,7.33798996]
[1744635574239,6.66,133.82,133.81,7.48015153]